[Event "Titled Tuesday Blitz September 28 2021"]
[White "Moksh Amit Doshi"]
[Black "Yakubboev, Nodirbek"]
[WhiteFideId "25064967"]
[BlackFideId "14203987"]
[WhiteElo "2245"]
[BlackElo "2464"]
[Result "0-1"]
[Round "05"]
[TimeControl "180+1"]
[Date "2021.09.28"]
[WhiteClock "0:00:12"]
[BlackClock "0:00:36"]

1. d4 {[%clk 0:02:51]}  Nf6 {[%clk 0:02:59]} 2. c4 {[%clk 0:02:48]}  g6 {[%clk 0:02:59]} 3. Nc3 {[%clk 0:02:47]}  Bg7 {[%clk 0:02:58]} 4. e4 {[%clk 0:02:46]}  d6 {[%clk 0:02:58]} 5. Nf3 {[%clk 0:02:46]}  O-O {[%clk 0:02:58]} 6. Be2 {[%clk 0:02:45]}  e5 {[%clk 0:02:58]} 7. O-O {[%clk 0:02:41]}  Na6 {[%clk 0:02:58]} 8. Re1 {[%clk 0:02:38]}  Bg4 {[%clk 0:02:53]} 9. dxe5 {[%clk 0:02:30]}  Bxf3 {[%clk 0:02:47]} 10. Bxf3 {[%clk 0:02:18]}  dxe5 {[%clk 0:02:46]} 11. Be3 {[%clk 0:02:14]}  c6 {[%clk 0:02:40]} 12. a3 {[%clk 0:02:08]}  Nc7 {[%clk 0:02:31]} 13. b4 {[%clk 0:02:07]}  Ne6 {[%clk 0:02:30]} 14. Ne2 {[%clk 0:01:55]}  h5 {[%clk 0:02:22]} 15. h3 {[%clk 0:01:45]}  Kh7 {[%clk 0:02:21]} 16. Qxd8 {[%clk 0:01:44]}  Rfxd8 {[%clk 0:02:21]} 17. Red1 {[%clk 0:01:44]}  Rxd1+ {[%clk 0:02:20]} 18. Rxd1 {[%clk 0:01:44]}  Bh6 {[%clk 0:02:20]} 19. Bxh6 {[%clk 0:01:40]}  Kxh6 {[%clk 0:02:21]} 20. Rd6 {[%clk 0:01:25]}  Kg7 {[%clk 0:02:18]} 21. Nc3 {[%clk 0:01:23]}  Kf8 {[%clk 0:02:03]} 22. Kf1 {[%clk 0:01:17]}  a5 {[%clk 0:01:58]} 23. b5 {[%clk 0:01:14]}  Ke7 {[%clk 0:01:58]} 24. Rd3 {[%clk 0:01:13]}  Nd7 {[%clk 0:01:56]} 25. Na4 {[%clk 0:01:01]}  Ndc5 {[%clk 0:01:51]} 26. Nxc5 {[%clk 0:00:58]}  Nxc5 {[%clk 0:01:52]} 27. Rd1 {[%clk 0:00:56]}  Nb3 {[%clk 0:01:16]} 28. h4 {[%clk 0:00:45]}  cxb5 {[%clk 0:01:14]} 29. cxb5 {[%clk 0:00:41]}  Rc8 {[%clk 0:01:13]} 30. g3 {[%clk 0:00:30]}  Nd4 {[%clk 0:01:12]} 31. Be2 {[%clk 0:00:29]}  Rc3 {[%clk 0:01:10]} 32. Ke1 {[%clk 0:00:20]}  Rxa3 {[%clk 0:01:04]} 33. Rc1 {[%clk 0:00:20]}  Kd6 {[%clk 0:00:58]} 34. Rc8 {[%clk 0:00:19]}  Ra1+ {[%clk 0:00:50]} 35. Bd1 {[%clk 0:00:18]}  Nxb5 {[%clk 0:00:48]} 36. Kd2 {[%clk 0:00:18]}  Ra2+ {[%clk 0:00:47]} 37. Ke3 {[%clk 0:00:17]}  Ra3+ {[%clk 0:00:45]} 38. Kd2 {[%clk 0:00:17]}  Nd4 {[%clk 0:00:44]} 39. Rf8 {[%clk 0:00:16]}  Ke7 {[%clk 0:00:43]} 40. Rb8 {[%clk 0:00:16]}  b5 {[%clk 0:00:43]} 41. Rb7+ {[%clk 0:00:15]}  Kf6 {[%clk 0:00:41]} 42. Rb6+ {[%clk 0:00:14]}  Kg7 {[%clk 0:00:41]} 43. f4 {[%clk 0:00:15]}  Rxg3 {[%clk 0:00:40]} 44. fxe5 {[%clk 0:00:15]}  a4 {[%clk 0:00:39]} 45. Rd6 {[%clk 0:00:14]}  a3 {[%clk 0:00:36]} 46. Rxd4 {[%clk 0:00:12]}  a2 {[%clk 0:00:36]} 0-1


[Site "https://www.chess.com"]

[Event "Titled Tuesday Blitz September 28 2021"]
[White "Moroni, Luca Jr"]
[Black "AleksanderHnydiuk"]
[WhiteFideId "865834"]
[WhiteElo "2491"]
[BlackElo "2591"]
[Result "1-0"]
[Round "05"]
[TimeControl "180+1"]
[Date "2021.09.28"]
[WhiteClock "0:00:09"]
[BlackClock "0:00:03"]

1. d4 {[%clk 0:03:00]}  Nf6 {[%clk 0:02:58]} 2. c4 {[%clk 0:03:00]}  g6 {[%clk 0:02:58]} 3. Nc3 {[%clk 0:02:59]}  Bg7 {[%clk 0:02:58]} 4. e4 {[%clk 0:02:58]}  d6 {[%clk 0:02:58]} 5. Bd3 {[%clk 0:02:59]}  O-O {[%clk 0:02:58]} 6. Nge2 {[%clk 0:02:59]}  Nc6 {[%clk 0:02:53]} 7. O-O {[%clk 0:02:58]}  Nd7 {[%clk 0:02:53]} 8. Bc2 {[%clk 0:02:58]}  e5 {[%clk 0:02:40]} 9. d5 {[%clk 0:02:58]}  Nb4 {[%clk 0:02:32]} 10. Bb1 {[%clk 0:02:57]}  f5 {[%clk 0:02:12]} 11. exf5 {[%clk 0:02:29]}  gxf5 {[%clk 0:02:11]} 12. a3 {[%clk 0:02:29]}  Na6 {[%clk 0:02:10]} 13. b4 {[%clk 0:02:30]}  Qh4 {[%clk 0:01:52]} 14. f4 {[%clk 0:02:25]}  Nf6 {[%clk 0:01:41]} 15. Qe1 {[%clk 0:02:16]}  Qxe1 {[%clk 0:01:32]} 16. Rxe1 {[%clk 0:02:17]}  c5 {[%clk 0:01:32]} 17. b5 {[%clk 0:01:02]}  Nc7 {[%clk 0:01:31]} 18. Bc2 {[%clk 0:00:56]}  e4 {[%clk 0:01:20]} 19. a4 {[%clk 0:00:55]}  a6 {[%clk 0:01:14]} 20. b6 {[%clk 0:00:49]}  Nce8 {[%clk 0:01:13]} 21. h3 {[%clk 0:00:46]}  h5 {[%clk 0:01:08]} 22. Be3 {[%clk 0:00:39]}  Bd7 {[%clk 0:01:07]} 23. Bf2 {[%clk 0:00:33]}  Kf7 {[%clk 0:01:05]} 24. Nd1 {[%clk 0:00:33]}  Nxd5 {[%clk 0:00:53]} 25. cxd5 {[%clk 0:00:26]}  Bxa1 {[%clk 0:00:53]} 26. Ne3 {[%clk 0:00:26]}  Bd4 {[%clk 0:00:46]} 27. Nc4 {[%clk 0:00:23]}  Bxf2+ {[%clk 0:00:43]} 28. Kxf2 {[%clk 0:00:24]}  Rd8 {[%clk 0:00:35]} 29. Nc3 {[%clk 0:00:23]}  Bc8 {[%clk 0:00:33]} 30. Nd1 {[%clk 0:00:23]}  h4 {[%clk 0:00:28]} 31. Nde3 {[%clk 0:00:23]}  Rg8 {[%clk 0:00:29]} 32. Bd1 {[%clk 0:00:23]}  Nf6 {[%clk 0:00:27]} 33. Be2 {[%clk 0:00:23]}  Rg3 {[%clk 0:00:24]} 34. Rb1 {[%clk 0:00:20]}  Ke7 {[%clk 0:00:24]} 35. Na5 {[%clk 0:00:19]}  Rdg8 {[%clk 0:00:22]} 36. Bxa6 {[%clk 0:00:13]}  bxa6 {[%clk 0:00:19]} 37. b7 {[%clk 0:00:14]}  Bxb7 {[%clk 0:00:18]} 38. Rxb7+ {[%clk 0:00:15]}  Kf8 {[%clk 0:00:13]} 39. Nac4 {[%clk 0:00:15]}  Ne8 {[%clk 0:00:10]} 40. Rb8 {[%clk 0:00:12]}  Ke7 {[%clk 0:00:09]} 41. Rb7+ {[%clk 0:00:12]}  Kf8 {[%clk 0:00:09]} 42. Rb8 {[%clk 0:00:12]}  Kf7 {[%clk 0:00:08]} 43. Ra8 {[%clk 0:00:10]}  Kf8 {[%clk 0:00:03]} 44. Nxd6 {[%clk 0:00:09]} 1-0


[Site "https://www.chess.com"]

[Event "Titled Tuesday Blitz September 28 2021"]
[White "Moskalenko, Alexander"]
[Black "Babiy, Olga"]
[WhiteFideId "4155351"]
[BlackFideId "14117258"]
[WhiteElo "2515"]
[BlackElo "2253"]
[Result "0-1"]
[Round "05"]
[TimeControl "180+1"]
[Date "2021.09.28"]
[WhiteClock "0:00:09"]
[BlackClock "0:00:04"]

1. e4 {[%clk 0:01:48]}  c5 {[%clk 0:02:59]} 2. Nf3 {[%clk 0:01:43]}  d6 {[%clk 0:02:59]} 3. d4 {[%clk 0:01:41]}  cxd4 {[%clk 0:03:00]} 4. Nxd4 {[%clk 0:01:42]}  Nf6 {[%clk 0:02:59]} 5. Nc3 {[%clk 0:01:42]}  a6 {[%clk 0:03:00]} 6. Bg5 {[%clk 0:01:42]}  Nbd7 {[%clk 0:02:59]} 7. f4 {[%clk 0:01:32]}  e6 {[%clk 0:02:47]} 8. Qf3 {[%clk 0:01:27]}  Be7 {[%clk 0:02:48]} 9. O-O-O {[%clk 0:01:17]}  Qc7 {[%clk 0:02:49]} 10. g4 {[%clk 0:01:18]}  b5 {[%clk 0:02:30]} 11. Bxf6 {[%clk 0:01:17]}  Nxf6 {[%clk 0:02:30]} 12. g5 {[%clk 0:01:18]}  Nd7 {[%clk 0:02:27]} 13. f5 {[%clk 0:01:18]}  Bxg5+ {[%clk 0:02:19]} 14. Kb1 {[%clk 0:01:16]}  Ne5 {[%clk 0:02:20]} 15. Qh5 {[%clk 0:01:10]}  Qe7 {[%clk 0:02:09]} 16. Nxe6 {[%clk 0:01:02]}  Bxe6 {[%clk 0:02:10]} 17. fxe6 {[%clk 0:01:02]}  g6 {[%clk 0:01:38]} 18. exf7+ {[%clk 0:00:59]}  Nxf7 {[%clk 0:01:38]} 19. Qe2 {[%clk 0:00:57]}  O-O {[%clk 0:01:33]} 20. h4 {[%clk 0:00:48]}  Bh6 {[%clk 0:01:27]} 21. Nd5 {[%clk 0:00:49]}  Qe5 {[%clk 0:01:27]} 22. h5 {[%clk 0:00:49]}  g5 {[%clk 0:01:26]} 23. Bh3 {[%clk 0:00:47]}  Bg7 {[%clk 0:01:21]} 24. c3 {[%clk 0:00:43]}  Rae8 {[%clk 0:01:16]} 25. Rhe1 {[%clk 0:00:37]}  Nh6 {[%clk 0:00:57]} 26. Nc7 {[%clk 0:00:31]}  Re7 {[%clk 0:00:48]} 27. Rd5 {[%clk 0:00:31]}  Qg3 {[%clk 0:00:45]} 28. Rd3 {[%clk 0:00:28]}  Qf2 {[%clk 0:00:29]} 29. Nd5 {[%clk 0:00:17]}  Re5 {[%clk 0:00:29]} 30. Qd1 {[%clk 0:00:13]}  g4 {[%clk 0:00:24]} 31. Rf1 {[%clk 0:00:11]}  Qh2 {[%clk 0:00:14]} 32. Rxf8+ {[%clk 0:00:12]}  Kxf8 {[%clk 0:00:12]} 33. Bxg4 {[%clk 0:00:13]}  Nxg4 {[%clk 0:00:12]} 34. Qxg4 {[%clk 0:00:12]}  Qh1+ {[%clk 0:00:12]} 35. Kc2 {[%clk 0:00:10]}  Qxe4 {[%clk 0:00:05]} 36. Qc8+ {[%clk 0:00:10]}  Re8 {[%clk 0:00:05]} 37. Qd7 {[%clk 0:00:08]}  Qe2+ {[%clk 0:00:05]} 38. Rd2 {[%clk 0:00:09]}  Qe4+ {[%clk 0:00:05]} 39. Kb3 {[%clk 0:00:09]}  Qa4# {[%clk 0:00:04]} 0-1


[Site "https://www.chess.com"]

[Event "Titled Tuesday Blitz September 28 2021"]
[White "Nazaretyan, Tigran"]
[Black "Corrales Jimenez, Fidel"]
[WhiteFideId "24162345"]
[BlackFideId "3506690"]
[WhiteElo "2212"]
[BlackElo "2555"]
[Result "0-1"]
[Round "05"]
[TimeControl "180+1"]
[Date "2021.09.28"]
[WhiteClock "0:00:11"]
[BlackClock "0:01:06"]

1. d4 {[%clk 0:01:29]}  Nf6 {[%clk 0:02:58]} 2. c4 {[%clk 0:01:29]}  g6 {[%clk 0:02:58]} 3. Nf3 {[%clk 0:01:29]}  Bg7 {[%clk 0:02:58]} 4. Nc3 {[%clk 0:01:30]}  d5 {[%clk 0:02:59]} 5. Bg5 {[%clk 0:01:30]}  O-O {[%clk 0:02:57]} 6. Bxf6 {[%clk 0:01:29]}  Bxf6 {[%clk 0:02:58]} 7. cxd5 {[%clk 0:01:30]}  c5 {[%clk 0:02:55]} 8. e3 {[%clk 0:01:23]}  Bg4 {[%clk 0:02:52]} 9. Be2 {[%clk 0:01:23]}  Bxf3 {[%clk 0:02:51]} 10. Bxf3 {[%clk 0:01:23]}  cxd4 {[%clk 0:02:52]} 11. exd4 {[%clk 0:01:22]}  Qb6 {[%clk 0:02:52]} 12. Ne4 {[%clk 0:01:18]}  Bxd4 {[%clk 0:02:49]} 13. O-O {[%clk 0:01:17]}  Nd7 {[%clk 0:02:48]} 14. Rb1 {[%clk 0:01:13]}  Rac8 {[%clk 0:02:46]} 15. b4 {[%clk 0:01:12]}  Ne5 {[%clk 0:02:37]} 16. Nc5 {[%clk 0:01:12]}  Nxf3+ {[%clk 0:02:26]} 17. Qxf3 {[%clk 0:01:11]}  Rfd8 {[%clk 0:02:27]} 18. Rfe1 {[%clk 0:00:58]}  Bxc5 {[%clk 0:02:23]} 19. bxc5 {[%clk 0:00:58]}  Qxc5 {[%clk 0:02:24]} 20. Rxb7 {[%clk 0:00:58]}  Rxd5 {[%clk 0:02:19]} 21. g3 {[%clk 0:00:42]}  Rf5 {[%clk 0:02:17]} 22. Qe3 {[%clk 0:00:42]}  Qxe3 {[%clk 0:02:16]} 23. Rxe3 {[%clk 0:00:41]}  Rc2 {[%clk 0:02:17]} 24. f4 {[%clk 0:00:39]}  Rd5 {[%clk 0:02:11]} 25. Rbxe7 {[%clk 0:00:37]}  Rdd2 {[%clk 0:02:08]} 26. a4 {[%clk 0:00:28]}  Rg2+ {[%clk 0:01:54]} 27. Kf1 {[%clk 0:00:28]}  Rxh2 {[%clk 0:01:55]} 28. Kg1 {[%clk 0:00:24]}  Rcg2+ {[%clk 0:01:55]} 29. Kf1 {[%clk 0:00:24]}  Ra2 {[%clk 0:01:56]} 30. Kg1 {[%clk 0:00:25]}  Rhd2 {[%clk 0:01:53]} 31. a5 {[%clk 0:00:20]}  Kg7 {[%clk 0:01:29]} 32. Kf1 {[%clk 0:00:20]}  h5 {[%clk 0:01:27]} 33. Rxa7 {[%clk 0:00:19]}  Rh2 {[%clk 0:01:24]} 34. Kg1 {[%clk 0:00:19]}  Rag2+ {[%clk 0:01:23]} 35. Kf1 {[%clk 0:00:19]}  Rb2 {[%clk 0:01:22]} 36. Kg1 {[%clk 0:00:19]}  Rhc2 {[%clk 0:01:22]} 37. Kf1 {[%clk 0:00:15]}  Kf6 {[%clk 0:01:18]} 38. a6 {[%clk 0:00:16]}  Ra2 {[%clk 0:01:08]} 39. Ree7 {[%clk 0:00:14]}  Kf5 {[%clk 0:01:08]} 40. Rxf7+ {[%clk 0:00:15]}  Kg4 {[%clk 0:01:08]} 41. Rfe7 {[%clk 0:00:12]}  Kf3 {[%clk 0:01:05]} 42. Re1 {[%clk 0:00:10]}  Rf2+ {[%clk 0:01:04]} 43. Kg1 {[%clk 0:00:10]}  Rg2+ {[%clk 0:01:05]} 44. Kh1 {[%clk 0:00:11]}  Rh2+ {[%clk 0:01:05]} 45. Kg1 {[%clk 0:00:11]}  Rag2+ {[%clk 0:01:06]} 0-1


[Site "https://www.chess.com"]

[Event "Titled Tuesday Blitz September 28 2021"]
[White "Nozdrachev, Leonid"]
[Black "Pourkashiyan, Atousa"]
[WhiteFideId "24113433"]
[BlackFideId "12502014"]
[WhiteElo "2196"]
[BlackElo "2285"]
[Result "1-0"]
[Round "05"]
[TimeControl "180+1"]
[Date "2021.09.28"]
[WhiteClock "0:00:10"]
[BlackClock "0:00:21"]

1. e4 {[%clk 0:02:47]}  e5 {[%clk 0:02:52]} 2. Nf3 {[%clk 0:02:46]}  Nf6 {[%clk 0:02:50]} 3. Nxe5 {[%clk 0:02:42]}  d6 {[%clk 0:02:50]} 4. Nf3 {[%clk 0:02:42]}  Nxe4 {[%clk 0:02:50]} 5. Nc3 {[%clk 0:02:42]}  Nxc3 {[%clk 0:02:50]} 6. dxc3 {[%clk 0:02:43]}  Be7 {[%clk 0:02:50]} 7. Bf4 {[%clk 0:02:42]}  Nd7 {[%clk 0:02:49]} 8. Bd3 {[%clk 0:02:42]}  Nc5 {[%clk 0:02:49]} 9. Nd4 {[%clk 0:02:38]}  Nxd3+ {[%clk 0:02:44]} 10. Qxd3 {[%clk 0:02:38]}  O-O {[%clk 0:02:44]} 11. O-O {[%clk 0:02:36]}  Bg5 {[%clk 0:02:27]} 12. Qg3 {[%clk 0:02:31]}  Bxf4 {[%clk 0:02:11]} 13. Qxf4 {[%clk 0:02:31]}  Re8 {[%clk 0:02:09]} 14. h3 {[%clk 0:02:29]}  Bd7 {[%clk 0:02:08]} 15. Rad1 {[%clk 0:02:28]}  h6 {[%clk 0:02:07]} 16. b3 {[%clk 0:02:25]}  Qg5 {[%clk 0:02:07]} 17. Qxg5 {[%clk 0:02:21]}  hxg5 {[%clk 0:02:08]} 18. Nf3 {[%clk 0:02:21]}  f6 {[%clk 0:02:07]} 19. Rfe1 {[%clk 0:02:20]}  Kf7 {[%clk 0:02:03]} 20. a4 {[%clk 0:02:17]}  a6 {[%clk 0:01:49]} 21. Nd4 {[%clk 0:02:16]}  Re5 {[%clk 0:01:42]} 22. Rxe5 {[%clk 0:02:09]}  dxe5 {[%clk 0:01:41]} 23. Ne2 {[%clk 0:01:58]}  Bf5 {[%clk 0:01:41]} 24. Rd2 {[%clk 0:01:56]}  Ke7 {[%clk 0:01:36]} 25. Kf1 {[%clk 0:01:49]}  Rh8 {[%clk 0:01:28]} 26. Ng3 {[%clk 0:01:47]}  Bg6 {[%clk 0:01:21]} 27. Ke2 {[%clk 0:01:40]}  Rh4 {[%clk 0:01:21]} 28. f3 {[%clk 0:01:36]}  Rh8 {[%clk 0:01:21]} 29. c4 {[%clk 0:01:34]}  Rb8 {[%clk 0:01:20]} 30. c5 {[%clk 0:01:30]}  Rd8 {[%clk 0:01:17]} 31. c3 {[%clk 0:01:26]}  Rxd2+ {[%clk 0:01:13]} 32. Kxd2 {[%clk 0:01:27]}  Ke6 {[%clk 0:01:11]} 33. c4 {[%clk 0:01:24]}  a5 {[%clk 0:01:08]} 34. Ne2 {[%clk 0:01:19]}  e4 {[%clk 0:00:54]} 35. Nd4+ {[%clk 0:01:08]}  Ke5 {[%clk 0:00:52]} 36. Ke3 {[%clk 0:01:06]}  exf3 {[%clk 0:00:43]} 37. Nxf3+ {[%clk 0:01:07]}  Ke6 {[%clk 0:00:40]} 38. Nd4+ {[%clk 0:01:03]}  Kd7 {[%clk 0:00:40]} 39. g3 {[%clk 0:00:59]}  Bb1 {[%clk 0:00:34]} 40. Kd2 {[%clk 0:00:44]}  Bg6 {[%clk 0:00:34]} 41. Kc3 {[%clk 0:00:43]}  Be4 {[%clk 0:00:34]} 42. Kd2 {[%clk 0:00:30]}  Bg2 {[%clk 0:00:33]} 43. h4 {[%clk 0:00:30]}  gxh4 {[%clk 0:00:33]} 44. gxh4 {[%clk 0:00:31]}  Be4 {[%clk 0:00:34]} 45. Ke3 {[%clk 0:00:31]}  Bg6 {[%clk 0:00:33]} 46. Kf4 {[%clk 0:00:31]}  Ke7 {[%clk 0:00:31]} 47. c6 {[%clk 0:00:30]}  b6 {[%clk 0:00:30]} 48. Nb5 {[%clk 0:00:27]}  Kd8 {[%clk 0:00:30]} 49. Nd4 {[%clk 0:00:26]}  Ke7 {[%clk 0:00:27]} 50. Kg4 {[%clk 0:00:23]}  Kd6 {[%clk 0:00:27]} 51. h5 {[%clk 0:00:20]}  Bd3 {[%clk 0:00:25]} 52. Nf5+ {[%clk 0:00:19]}  Bxf5+ {[%clk 0:00:24]} 53. Kxf5 {[%clk 0:00:20]}  Kxc6 {[%clk 0:00:25]} 54. Kg6 {[%clk 0:00:20]}  f5 {[%clk 0:00:19]} 55. Kxf5 {[%clk 0:00:20]}  Kc5 {[%clk 0:00:14]} 56. Kg6 {[%clk 0:00:18]}  Kb4 {[%clk 0:00:15]} 57. Kxg7 {[%clk 0:00:19]}  Kxb3 {[%clk 0:00:15]} 58. h6 {[%clk 0:00:20]}  Kxa4 {[%clk 0:00:14]} 59. h7 {[%clk 0:00:20]}  Kb3 {[%clk 0:00:14]} 60. h8=Q {[%clk 0:00:20]}  a4 {[%clk 0:00:14]} 61. Qc8 {[%clk 0:00:18]}  c5 {[%clk 0:00:14]} 62. Qc6 {[%clk 0:00:17]}  a3 {[%clk 0:00:13]} 63. Qxb6+ {[%clk 0:00:17]}  Kxc4 {[%clk 0:00:14]} 64. Qa5 {[%clk 0:00:16]}  Kb3 {[%clk 0:00:14]} 65. Qb5+ {[%clk 0:00:15]}  Kc2 {[%clk 0:00:14]} 66. Qxc5+ {[%clk 0:00:13]}  Kb2 {[%clk 0:00:15]} 67. Qb4+ {[%clk 0:00:13]}  Ka2 {[%clk 0:00:16]} 68. Kf6 {[%clk 0:00:13]}  Ka1 {[%clk 0:00:17]} 69. Qxa3+ {[%clk 0:00:12]}  Kb1 {[%clk 0:00:17]} 70. Ke5 {[%clk 0:00:11]}  Kc2 {[%clk 0:00:18]} 71. Kd4 {[%clk 0:00:11]}  Kd2 {[%clk 0:00:19]} 72. Qd3+ {[%clk 0:00:09]}  Ke1 {[%clk 0:00:19]} 73. Qc2 {[%clk 0:00:09]}  Kf1 {[%clk 0:00:19]} 74. Ke3 {[%clk 0:00:09]}  Kg1 {[%clk 0:00:20]} 75. Kf3 {[%clk 0:00:10]}  Kh1 {[%clk 0:00:21]} 76. Qg2# {[%clk 0:00:10]} 1-0


[Site "https://www.chess.com"]

[Event "Titled Tuesday Blitz September 28 2021"]
[White "Nurmanova, Alua"]
[Black "Quispe Arteaga, Gabriel"]
[WhiteFideId "13729390"]
[BlackFideId "32059809"]
[WhiteElo "1869"]
[BlackElo "2192"]
[Result "0-1"]
[Round "05"]
[TimeControl "180+1"]
[Date "2021.09.28"]
[WhiteClock "0:00:03"]
[BlackClock "0:00:08"]

1. e4 {[%clk 0:03:00]}  c5 {[%clk 0:02:57]} 2. Nf3 {[%clk 0:03:00]}  d6 {[%clk 0:02:56]} 3. d4 {[%clk 0:03:01]}  cxd4 {[%clk 0:02:57]} 4. Nxd4 {[%clk 0:03:01]}  Nf6 {[%clk 0:02:58]} 5. Nc3 {[%clk 0:03:01]}  a6 {[%clk 0:02:59]} 6. Bg5 {[%clk 0:03:02]}  e6 {[%clk 0:02:58]} 7. f4 {[%clk 0:03:02]}  h6 {[%clk 0:02:59]} 8. Bh4 {[%clk 0:03:01]}  Qb6 {[%clk 0:02:59]} 9. Qd2 {[%clk 0:02:58]}  Qxb2 {[%clk 0:02:59]} 10. Rb1 {[%clk 0:02:58]}  Qa3 {[%clk 0:03:00]} 11. e5 {[%clk 0:02:59]}  Nfd7 {[%clk 0:02:46]} 12. Be2 {[%clk 0:02:47]}  g5 {[%clk 0:02:35]} 13. fxg5 {[%clk 0:02:45]}  dxe5 {[%clk 0:02:34]} 14. g6 {[%clk 0:02:03]}  exd4 {[%clk 0:02:33]} 15. gxf7+ {[%clk 0:02:03]}  Kxf7 {[%clk 0:02:34]} 16. O-O {[%clk 0:02:02]}  Kg8 {[%clk 0:02:30]} 17. Qd3 {[%clk 0:01:38]}  Qxc3 {[%clk 0:01:50]} 18. Qg6+ {[%clk 0:01:37]}  Bg7 {[%clk 0:01:51]} 19. Qxe6+ {[%clk 0:01:32]}  Kh7 {[%clk 0:01:49]} 20. Qf5+ {[%clk 0:01:14]}  Kg8 {[%clk 0:01:48]} 21. Qf7+ {[%clk 0:01:05]}  Kh7 {[%clk 0:01:48]} 22. Bd3+ {[%clk 0:01:05]}  Qxd3 {[%clk 0:01:48]} 23. cxd3 {[%clk 0:01:06]}  Ne5 {[%clk 0:01:47]} 24. Qd5 {[%clk 0:01:01]}  Nbc6 {[%clk 0:01:42]} 25. Bf6 {[%clk 0:00:57]}  Rf8 {[%clk 0:01:15]} 26. Bxg7 {[%clk 0:00:44]}  Rxf1+ {[%clk 0:01:15]} 27. Rxf1 {[%clk 0:00:45]}  Kxg7 {[%clk 0:01:15]} 28. Re1 {[%clk 0:00:42]}  Ng4 {[%clk 0:00:26]} 29. Re8 {[%clk 0:00:41]}  Nf6 {[%clk 0:00:25]} 30. Rg8+ {[%clk 0:00:11]}  Nxg8 {[%clk 0:00:24]} 31. h4 {[%clk 0:00:12]}  Nf6 {[%clk 0:00:24]} 32. Qd6 {[%clk 0:00:10]}  Bd7 {[%clk 0:00:24]} 33. Qc7 {[%clk 0:00:10]}  Re8 {[%clk 0:00:19]} 34. h5 {[%clk 0:00:10]}  Re7 {[%clk 0:00:19]} 35. Qg3+ {[%clk 0:00:09]}  Bg4 {[%clk 0:00:18]} 36. Qd6 {[%clk 0:00:08]}  Rd7 {[%clk 0:00:17]} 37. Qf4 {[%clk 0:00:07]}  Ne7 {[%clk 0:00:16]} 38. Kh2 {[%clk 0:00:07]}  Nf5 {[%clk 0:00:17]} 39. Qb8 {[%clk 0:00:05]}  Rf7 {[%clk 0:00:16]} 40. g3 {[%clk 0:00:04]}  Nxh5 {[%clk 0:00:15]} 41. Qe5+ {[%clk 0:00:04]}  Nf6 {[%clk 0:00:16]} 42. Qb8 {[%clk 0:00:03]}  h5 {[%clk 0:00:17]} 43. Qe5 {[%clk 0:00:03]}  Kg6 {[%clk 0:00:17]} 44. Qe6 {[%clk 0:00:03]}  Nxg3 {[%clk 0:00:14]} 45. Qb3 {[%clk 0:00:04]}  Nf5 {[%clk 0:00:14]} 46. Qc2 {[%clk 0:00:04]}  Re7 {[%clk 0:00:13]} 47. Qc4 {[%clk 0:00:04]}  Re2+ {[%clk 0:00:13]} 48. Kg1 {[%clk 0:00:05]}  Ne3 {[%clk 0:00:13]} 49. Qc7 {[%clk 0:00:04]}  Re1+ {[%clk 0:00:11]} 50. Kf2 {[%clk 0:00:04]}  Rf1+ {[%clk 0:00:11]} 51. Kg3 {[%clk 0:00:04]}  Rg1+ {[%clk 0:00:08]} 52. Kf2 {[%clk 0:00:03]}  Rg2+ {[%clk 0:00:08]} 0-1


[Site "https://www.chess.com"]

[Event "Titled Tuesday Blitz September 28 2021"]
[White "Omariev, Maksim"]
[Black "Aitbayev, Aslan"]
[WhiteFideId "4193423"]
[BlackFideId "13704613"]
[WhiteElo "2463"]
[BlackElo "2417"]
[Result "0-1"]
[Round "05"]
[TimeControl "180+1"]
[Date "2021.09.28"]
[WhiteClock "0:00:01"]
[BlackClock "0:00:47"]

1. d4 {[%clk 0:03:00]}  d5 {[%clk 0:02:56]} 2. c3 {[%clk 0:03:01]}  Nf6 {[%clk 0:02:48]} 3. Bf4 {[%clk 0:03:01]}  Bf5 {[%clk 0:02:43]} 4. Qb3 {[%clk 0:03:00]}  Qc8 {[%clk 0:02:37]} 5. e3 {[%clk 0:02:57]}  e6 {[%clk 0:02:37]} 6. Nf3 {[%clk 0:02:49]}  Be7 {[%clk 0:02:36]} 7. c4 {[%clk 0:02:35]}  O-O {[%clk 0:02:34]} 8. Nc3 {[%clk 0:02:35]}  Nc6 {[%clk 0:02:16]} 9. cxd5 {[%clk 0:02:20]}  exd5 {[%clk 0:02:13]} 10. Rc1 {[%clk 0:01:52]}  a6 {[%clk 0:01:56]} 11. Be2 {[%clk 0:01:13]}  Rd8 {[%clk 0:01:55]} 12. O-O {[%clk 0:01:09]}  h6 {[%clk 0:01:51]} 13. h3 {[%clk 0:01:08]}  Bf8 {[%clk 0:01:45]} 14. a3 {[%clk 0:01:02]}  Ne4 {[%clk 0:01:38]} 15. Nxe4 {[%clk 0:00:34]}  Bxe4 {[%clk 0:01:31]} 16. Rc3 {[%clk 0:00:34]}  Bd6 {[%clk 0:01:13]} 17. Bxd6 {[%clk 0:00:18]}  Rxd6 {[%clk 0:01:13]} 18. Rfc1 {[%clk 0:00:16]}  Rg6 {[%clk 0:01:10]} 19. Kh2 {[%clk 0:00:03]}  Rb8 {[%clk 0:01:08]} 20. Qd1 {[%clk 0:00:02]}  Ra8 {[%clk 0:01:05]} 21. Bd3 {[%clk 0:00:02]}  f5 {[%clk 0:00:58]} 22. Ne1 {[%clk 0:00:01]}  Qe6 {[%clk 0:00:54]} 23. f3 {[%clk 0:00:01]}  Qd6+ {[%clk 0:00:54]} 24. Kh1 {[%clk 0:00:01]}  Bxd3 {[%clk 0:00:49]} 25. Nxd3 {[%clk 0:00:02]}  Re8 {[%clk 0:00:49]} 26. Rxc6 {[%clk 0:00:02]}  bxc6 {[%clk 0:00:49]} 27. Ne5 {[%clk 0:00:03]}  Rxe5 {[%clk 0:00:48]} 28. dxe5 {[%clk 0:00:03]}  Qxe5 {[%clk 0:00:49]} 29. Qd3 {[%clk 0:00:03]}  Qxb2 {[%clk 0:00:47]} 30. Rb1 {[%clk 0:00:01]}  Qxg2# {[%clk 0:00:47]} 0-1


[Site "https://www.chess.com"]

[Event "Titled Tuesday Blitz September 28 2021"]
[White "Onyshchuk, Volodymyr"]
[Black "Bortnyk, Olexandr"]
[WhiteFideId "14114038"]
[BlackFideId "14120828"]
[WhiteElo "2863"]
[BlackElo "2960"]
[Result "0-1"]
[Round "05"]
[TimeControl "180+1"]
[Date "2021.09.28"]
[WhiteClock "0:00:17"]
[BlackClock "0:00:24"]

1. e4 {[%clk 0:03:00]}  Nf6 {[%clk 0:02:57]} 2. d3 {[%clk 0:02:57]}  d5 {[%clk 0:02:55]} 3. Nd2 {[%clk 0:02:56]}  e5 {[%clk 0:02:55]} 4. Ngf3 {[%clk 0:02:55]}  Nc6 {[%clk 0:02:55]} 5. g3 {[%clk 0:02:56]}  Bc5 {[%clk 0:02:55]} 6. Bg2 {[%clk 0:02:54]}  O-O {[%clk 0:02:56]} 7. O-O {[%clk 0:02:52]}  Re8 {[%clk 0:02:57]} 8. c3 {[%clk 0:02:51]}  a5 {[%clk 0:02:56]} 9. Qe2 {[%clk 0:02:46]}  b6 {[%clk 0:02:39]} 10. a4 {[%clk 0:02:30]}  Ba6 {[%clk 0:02:24]} 11. exd5 {[%clk 0:02:29]}  Nxd5 {[%clk 0:02:05]} 12. Nc4 {[%clk 0:02:28]}  e4 {[%clk 0:01:28]} 13. dxe4 {[%clk 0:02:16]}  Nf6 {[%clk 0:01:28]} 14. Nfd2 {[%clk 0:02:12]}  Ne5 {[%clk 0:01:25]} 15. b3 {[%clk 0:02:09]}  Qd3 {[%clk 0:00:55]} 16. Qxd3 {[%clk 0:02:06]}  Nxd3 {[%clk 0:00:56]} 17. Ba3 {[%clk 0:01:51]}  Rad8 {[%clk 0:00:53]} 18. h3 {[%clk 0:01:38]}  g5 {[%clk 0:00:45]} 19. Ra2 {[%clk 0:00:55]}  Bxa3 {[%clk 0:00:45]} 20. Rxa3 {[%clk 0:00:55]}  Bxc4 {[%clk 0:00:44]} 21. Nxc4 {[%clk 0:00:50]}  Nxe4 {[%clk 0:00:44]} 22. Bxe4 {[%clk 0:00:47]}  Rxe4 {[%clk 0:00:45]} 23. Ne3 {[%clk 0:00:42]}  Nc5 {[%clk 0:00:27]} 24. Rb1 {[%clk 0:00:42]}  Rd3 {[%clk 0:00:26]} 25. Rc1 {[%clk 0:00:25]}  Rd2 {[%clk 0:00:26]} 26. Rb1 {[%clk 0:00:21]}  Nd3 {[%clk 0:00:22]} 27. Rd1 {[%clk 0:00:17]}  Rxd1+ {[%clk 0:00:22]} 28. Nxd1 {[%clk 0:00:17]}  Re1+ {[%clk 0:00:23]} 29. Kg2 {[%clk 0:00:17]}  Rxd1 {[%clk 0:00:24]} 0-1


[Site "https://www.chess.com"]